bitfinex/quotes_ETHUSD_20250903
["timestamp","ask_amount","ask_price","bid_price","bid_amount"]
[1756924687865,9.60665244,4468.7,4468.6,0.001]
[1756924688177,9.60665244,4468.7,4468.6,0.3164]
[1756924688376,12.06798049,4468.7,4468.6,0.001]
[1756924688578,2.23793751,4468.4,4468.3,0.001]
[1756924688782,14.68881751,4468.4,4468.3,0.001]
[1756924688947,5.2379876,4468.3,4467.2,0.4493]
[1756924689147,2.23818796,4467.9,4467.1,0.4841]
[1756924689346,11.23935728,4467.9,4467.5,0.4493]
[1756924689676,11.32905313,4467.9,4467.8,0.3404]
[1756924690652,7.54705313,4467.9,4467.8,0.3404]
[1756924690983,11.32805313,4467.9,4467.8,0.3404]
[1756924691484,13.2502533,4467.9,4467.8,0.3404]
[1756924691685,13.2502533,4467.9,4467.8,0.025]
[1756924692286,13.2492533,4467.9,4467.8,0.3404]
[1756924692591,11.32705313,4467.9,4467.8,1.2738]
[1756924693379,7.54705313,4467.9,4467.8,1.2738]
[1756924693580,11.32705313,4467.9,4467.8,1.2738]
[1756924693994,7.54705313,4467.9,4467.8,1.2738]
[1756924694509,11.32605313,4467.9,4467.8,1.2738]
[1756924694709,11.32605313,4467.9,4467.8,0.8245]
[1756924694914,14.52254039,4467.9,4467.8,0.025]
[1756924695589,18.73465107,4467.9,4467.8,0.025]
[1756924695792,9.48794039,4467.9,4467.8,0.3404]
[1756924695991,13.26794039,4467.9,4467.8,0.3404]
[1756924696195,13.56394039,4467.9,4467.8,0.025]
[1756924696396,14.52354039,4467.9,4467.8,0.025]
[1756924696602,14.52354039,4467.9,4467.8,0.026]
[1756924697514,13.26794039,4467.9,4467.8,0.026]
[1756924697829,13.56394039,4467.9,4467.8,0.026]
[1756924698018,14.03634039,4467.9,4467.8,0.026]
[1756924698322,7.54705313,4467.9,4467.8,0.8255]
[1756924698530,11.21505313,4467.9,4467.8,1.2748]
[1756924699308,7.43505313,4467.9,4467.8,1.2748]
[1756924699621,11.21575513,4467.9,4467.8,1.2748]
[1756924700429,11.21575513,4467.9,4467.8,0.026]
[1756924700430,13.91400806,4467.9,4467.8,0.026]
[1756924700732,14.40120806,4467.9,4467.8,0.026]
[1756924702128,2.23843846,4467.4,4467.3,0.001]
[1756924702332,15.43670115,4467.4,4467.3,0.001]
[1756924702629,16.669997,4467.4,4467.3,0.001]
[1756924702798,16.670997,4467.4,4467.3,0.001]
[1756924704228,12.890997,4467.4,4467.3,0.001]
[1756924704406,16.669997,4467.4,4467.3,0.001]
[1756924704912,16.182797,4467.4,4467.3,0.001]
[1756924705112,15.710397,4467.4,4467.3,0.001]
[1756924705706,16.182797,4467.4,4467.3,0.001]
[1756924706538,11.93510228,4467.4,4467.3,0.001]
[1756924706735,14.67042159,4467.4,4467.3,0.3164]
[1756924707033,14.96642159,4467.4,4467.3,0.001]
[1756924707233,15.43882159,4467.4,4467.3,0.001]
[1756924707834,11.18742159,4467.4,4467.3,0.001]
[1756924708017,14.96442159,4467.4,4467.3,0.001]
[1756924708506,11.29942159,4467.4,4467.3,0.001]
[1756924708705,11.00342159,4467.4,4467.3,0.001]
[1756924708906,15.07642159,4467.4,4467.3,0.001]
[1756924709106,12.4901931,4467.4,4467.3,0.001]
[1756924709306,16.2671931,4467.4,4467.3,0.001]
[1756924709508,16.7395931,4467.4,4467.3,0.001]
[1756924709930,16.2671931,4467.4,4467.3,0.001]
[1756924710133,16.2661931,4467.4,4467.3,0.001]
[1756924711359,16.6957931,4467.4,4467.3,0.001]
[1756924711716,16.2661931,4467.4,4467.3,0.001]
[1756924712051,15.9701931,4467.4,4467.3,0.001]
[1756924712221,16.2831931,4467.4,4467.3,0.001]
[1756924712961,15.9701931,4467.4,4467.3,0.001]
[1756924713149,15.9701931,4467.4,4467.3,0.3158]
[1756924713460,15.9701931,4467.4,4467.3,0.001]
[1756924713950,17.82604027,4467.4,4467.3,0.001]
[1756924714117,16.61455742,4467.4,4467.3,0.001]
[1756924714317,7.02248242,4467.4,4467.3,0.001]
[1756924714656,9.60571091,4467.4,4467.3,1.2677]
[1756924714859,14.77742159,4467.4,4467.3,0.807]
[1756924715151,14.77742159,4467.4,4467.3,0.3158]
[1756924716667,14.77742159,4467.4,4467.3,1.2677]
[1756924716668,3.59327245,4467.4,4467.3,1.2677]
[1756924716965,7.36827245,4467.4,4467.3,1.2677]
[1756924717170,7.36827245,4467.4,4467.3,1.39447]
[1756924717171,0.59327245,4467.4,4467.3,1.39447]
[1756924717322,0.59401047,4467.4,4467.3,1.39447]
[1756924720495,0.00370528,4467.4,4467.3,1.39447]
[1756924721001,0.00370528,4467.4,4467.3,3.63295857]
[1756924721947,0.112,4468.5,4467.5,0.792]
[1756924722246,0.5901616,4468.7,4467.9,5.17171068]
[1756924722446,0.112,4468.7,4468.2,2.55283768]
[1756924722881,0.112,4468.7,4468.2,3.50473768]
[1756924723681,0.112,4468.7,4468.2,1.2667]
[1756924724872,2.23787396,4468.6,4468.2,0.3148]
[1756924725048,2.23820309,4467.9,4467.3,0.9529]
[1756924725395,2.23812721,4468.1,4467.3,0.001]
[1756924725688,2.2381644,4468.0,4467.3,0.001]
[1756924725998,0.112,4467.7,4467.4,0.4607]
[1756924726153,0.112,4467.7,4467.3,0.001]
[1756924726789,0.112,4467.7,4467.6,0.3148]
[1756924727682,0.112,4467.7,4467.6,0.7755]
[1756924727886,0.112,4467.7,4467.6,1.2667]
[1756924728647,0.112,4467.7,4467.6,1.61731341]
[1756924728851,0.112,4467.7,4467.6,3.85565166]
[1756924729289,0.112,4467.7,4467.6,1.61731341]
[1756924730396,0.112,4467.7,4467.6,1.15661341]
[1756924730555,0.112,4467.7,4467.6,0.66541341]
[1756924730754,0.112,4467.7,4467.6,0.3148]
[1756924731180,0.112,4467.7,4467.3,0.001]
[1756924731181,6.52021068,4467.7,4467.3,0.001]
[1756924731379,2.23843846,4467.4,4467.3,0.001]
[1756924731579,2.73770112,4467.4,4467.3,0.001]
[1756924731899,3.97420112,4467.4,4467.3,0.001]
[1756924732056,4.90666007,4467.4,4467.3,0.001]
[1756924732388,8.77435592,4467.4,4467.3,0.001]
[1756924734362,6.91839697,4467.4,4467.3,0.001]
[1756924734897,6.91639697,4467.4,4467.3,0.001]
[1756924736112,0.58895851,4467.4,4467.3,0.7765]
[1756924736408,0.112,4467.5,4467.3,1.2677]
[1756924736573,0.112,4467.5,4467.4,0.84182857]
[1756924736778,0.112,4467.5,4467.3,0.3158]
[1756924737684,0.112,4467.5,4467.4,0.9519]
[1756924738089,0.002,4467.7,4467.4,0.9519]
[1756924738408,0.002,4467.7,4467.5,0.9519]
[1756924738842,0.002,4467.7,4467.3,0.001]
[1756924738843,0.002,4467.7,4467.6,1.2667]
[1756924739089,0.002,4467.7,4467.3,0.001]
[1756924739090,0.315,4467.7,4467.3,0.001]
[1756924739264,0.112,4467.6,4467.3,0.001]
[1756924739891,0.112,4467.6,4467.5,0.31]
[1756924740090,0.002,4467.7,4467.5,1.2673]
[1756924740296,0.002,4467.7,4467.6,0.83587817]
[1756924740497,0.002,4467.7,4467.6,1.0693]
[1756924740678,0.002,4467.7,4467.6,3.61763825]
[1756924743379,0.002,4467.7,4467.6,7.39463825]
[1756924743998,0.002,4467.7,4467.6,8.18663825]
[1756924748097,0.002,4467.7,4467.6,3.14553825]
[1756924748293,0.002,4467.7,4467.6,7.37993642]
[1756924748693,0.2933,4467.7,4467.6,0.112]
[1756924748898,1.1972,4467.7,4467.6,3.774]
[1756924749217,0.2933,4467.7,4467.6,3.774]
[1756924749513,0.2933,4467.7,4467.4,3.774]
[1756924749514,2.23838836,4467.5,4467.4,3.774]
[1756924749719,2.23843846,4467.4,4467.3,0.001]
[1756924749918,2.71303846,4467.4,4467.3,0.001]
[1756924750215,3.43363846,4467.4,4467.3,0.001]
[1756924750518,3.54563846,4467.4,4467.3,0.001]
[1756924750913,0.4033,4467.4,4467.3,0.001]
[1756924751125,0.112,4467.4,4467.3,0.001]
[1756924751838,2.64173846,4467.4,4467.3,0.001]
[1756924752003,3.07103846,4467.4,4467.3,0.001]
[1756924752340,0.4033,4467.4,4467.3,0.001]
[1756924752703,2.64173846,4467.4,4467.3,0.001]
[1756924753219,0.112,4467.4,4467.3,0.001]
[1756924753413,0.4033,4467.4,4467.3,0.001]
[1756924754495,0.4033,4467.4,4467.3,2.83017441]
[1756924755104,2.64173846,4467.4,4467.3,2.83017441]
[1756924755326,3.54563846,4467.4,4467.3,2.83017441]
[1756924755700,3.07103846,4467.4,4467.3,2.83017441]
[1756924756312,3.54563846,4467.4,4467.3,2.83017441]
[1756924756516,1.3072,4467.4,4467.3,2.83017441]
[1756924756823,0.4033,4467.4,4467.3,2.83017441]
[1756924758129,0.112,4467.4,4467.3,2.83017441]
[1756924759126,0.112,4467.4,4467.3,3.14017441]
[1756924761118,2.91131312,4467.6,4467.3,3.14017441]
[1756924761119,0.67297393,4467.6,4467.3,7.86976487]
[1756924761301,0.002,4467.7,4467.5,2.23834322]
[1756924761704,0.002,4467.7,4467.6,3.774]
[1756924762116,0.002,4467.7,4467.6,4.084]
[1756924762311,0.002,4467.7,4467.6,4.89845931]
[1756924762499,0.002,4467.7,4467.6,4.58845931]
[1756924763309,0.002,4467.7,4467.6,3.774]
[1756924764209,0.2933,4467.7,4467.6,3.774]
[1756924765830,2.23834644,4467.6,4467.3,0.001]
[1756924766041,2.23834644,4467.6,4467.4,3.774]
[1756924766255,2.95898836,4467.5,4467.4,3.774]
[1756924766416,2.71616857,4467.5,4467.4,3.774]
[1756924766625,3.00746857,4467.5,4467.4,3.774]
[1756924766835,3.43676857,4467.5,4467.4,3.774]
[1756924767750,2.71616857,4467.5,4467.4,3.774]
[1756924768054,3.00746857,4467.5,4467.4,3.774]
[1756924768747,0.76908021,4467.5,4467.4,3.774]
[1756924768915,3.00746857,4467.5,4467.4,3.774]
[1756924769362,0.47778021,4467.5,4467.4,4.084]
[1756924769732,0.002,4467.7,4467.4,4.084]
[1756924770056,2.71611152,4467.6,4467.4,4.084]
[1756924770265,0.47776243,4467.5,4467.4,4.084]
[1756924771228,0.47776243,4467.5,4467.4,5.68023]
[1756924771423,0.002,4467.7,4467.4,4.76033]
[1756924771625,0.002,4467.7,4467.4,3.774]
[1756924771945,0.002,4467.5,4467.4,3.774]
[1756924772145,0.002,4467.5,4467.4,4.0817]
[1756924772728,0.002,4467.5,4467.4,4.5331]
[1756924772928,0.002,4467.5,4467.4,4.0817]
[1756924773225,0.002,4467.5,4467.4,8.64599284]
[1756924773545,0.002,4467.5,4467.4,8.62360846]
[1756924774067,0.002,4467.5,4467.4,13.06360846]
[1756924776469,0.002,4467.5,4467.4,13.1533013]
[1756924776666,0.002,4468.2,4467.6,0.792]
[1756924776867,0.002,4468.2,4468.1,10.00174743]
[1756924777067,0.002,4468.2,4468.1,15.80644743]
[1756924777268,0.002,4468.2,4468.1,18.9644352]
[1756924778737,0.002,4468.3,4468.2,6.03003768]
[1756924778937,0.002,4468.3,4468.2,6.94993768]
[1756924779137,0.002,4468.3,4468.2,9.37788497]
[1756924782090,0.002,4468.3,4468.2,13.8757324]
[1756924782291,0.002,4468.3,4468.2,14.6527324]
[1756924782587,0.002,4468.3,4468.2,15.4447324]
[1756924782885,0.002,4468.3,4468.2,16.3646324]
[1756924783249,0.002,4468.3,4468.2,16.4766324]
[1756924783572,0.002,4468.3,4468.2,19.3646324]
[1756924783780,0.002,4468.3,4468.2,19.4766324]
[1756924785098,1.2259,4468.3,4468.1,0.08967795]
[1756924785277,2.23808777,4468.1,4467.3,3.777]
[1756924785599,3.02230415,4468.2,4467.3,0.001]
[1756924785600,0.2947,4467.4,4467.3,0.001]
[1756924785952,3.46233846,4467.4,4467.3,0.001]
[1756924789204,3.96047544,4467.4,4467.3,0.001]
[1756924789385,6.96047544,4467.4,4467.3,0.001]
[1756924789713,6.93817129,4467.4,4467.3,0.001]
[1756924789883,8.23392377,4467.4,4467.3,0.001]
[1756924794722,5.23392377,4467.4,4467.3,0.001]
[1756924795196,5.34592377,4467.4,4467.3,0.001]
[1756924795396,2.23893807,4466.5,4465.9,0.517]
[1756924795596,2.23893807,4466.5,4466.4,0.3077]
[1756924795597,2.23888951,4466.5,4466.4,0.3077]
[1756924796132,0.112,4466.8,4466.4,1.2276]
[1756924796429,0.112,4466.8,4466.5,0.94228889]
[1756924796796,3.34528306,4467.7,4466.7,0.3077]
[1756924796797,0.112,4467.2,4466.7,0.3077]
[1756924796997,0.112,4467.2,4466.8,0.9199]
[1756924797330,0.112,4467.2,4467.1,0.3077]
[1756924798739,2.35054261,4467.2,4467.1,0.3077]
[1756924799027,2.23877711,4466.8,4466.6,3.782]
[1756924799237,2.16357649,4466.8,4466.6,3.782]
[1756924799733,0.112,4466.9,4466.7,0.7725]
[1756924800045,0.112,4466.9,4466.7,0.3028]
[1756924800245,0.112,4466.9,4466.6,3.782]
[1756924800427,0.112,4466.9,4466.8,0.3028]
[1756924800632,0.4498,4467.5,4466.8,0.3028]
[1756924800633,0.112,4467.1,4466.8,0.3028]
[1756924800826,0.112,4467.1,4466.9,0.9319]
[1756924801050,2.23873099,4466.9,4466.6,3.782]
[1756924801562,0.112,4467.1,4466.6,3.782]
[1756924801751,2.35062002,4467.1,4466.6,3.782]
[1756924801948,2.52638926,4466.7,4466.6,3.782]
[1756924802102,0.764542,4467.1,4466.6,3.782]
[1756924802103,0.112,4466.8,4466.6,4.0848]
[1756924802302,2.23867946,4467.0,4466.6,4.5545]
[1756924802518,2.23873533,4466.9,4466.6,4.0848]
[1756924803133,2.23864549,4467.0,4466.6,4.0848]
[1756924803338,2.23870016,4466.9,4466.6,4.0848]
[1756924803535,2.23870016,4466.9,4466.6,5.0167]
[1756924803746,2.23865253,4467.0,4466.6,5.0167]
[1756924804204,2.23865253,4467.0,4466.6,4.5545]
[1756924804403,0.112,4467.1,4466.6,4.5545]
[1756924804404,2.23869535,4466.9,4466.6,4.5545]
[1756924804637,0.112,4467.1,4466.6,4.5545]
[1756924804833,2.23864991,4467.0,4466.6,4.5545]
[1756924805368,2.35059401,4467.1,4466.6,4.0848]
[1756924805552,2.23875351,4466.8,4466.6,4.0848]
[1756924805878,0.112,4467.1,4466.6,4.0848]
[1756924806058,2.35060125,4467.1,4466.6,4.0848]
[1756924806359,2.23864968,4467.0,4466.6,4.5545]
[1756924806572,0.112,4467.1,4466.7,0.4697]
[1756924806733,0.112,4467.1,4467.0,0.3028]
[1756924807140,2.23868675,4467.0,4466.6,3.782]
[1756924807440,0.025,4467.8,4467.0,2.23859893]
[1756924807641,0.025,4467.8,4467.7,0.3028]
[1756924808747,0.025,4467.8,4467.7,0.7725]
[1756924808955,0.025,4467.8,4467.7,1.2347]
[1756924809331,0.025,4467.8,4467.7,0.7725]
[1756924809531,0.025,4467.8,4467.6,3.781]
[1756924810733,0.025,4467.8,4467.7,0.3028]
[1756924810929,0.025,4467.8,4467.7,0.7725]
[1756924812064,0.025,4467.8,4467.7,1.2347]
[1756924813264,0.025,4467.8,4467.7,0.7725]
[1756924814270,0.025,4467.8,4467.7,3.95072103]
[1756924814844,0.025,4467.8,4467.7,5.67172103]
[1756924815159,0.025,4467.8,4467.7,5.64933815]
[1756924815335,0.025,4467.8,4467.7,3.41105]
[1756924815749,0.025,4467.8,4467.7,2.0238]
[1756924816273,0.3126,4467.8,4467.3,0.001]
[1756924816600,0.792,4467.2,4464.7,0.4622]
[1756924816874,3.2876,4465.9,4464.8,1.05]
[1756924817093,0.76464479,4465.9,4465.0,0.4697]
[1756924817400,0.76464479,4465.9,4465.0,0.5817]
[1756924817401,2.6387903,4465.9,4465.0,0.5817]
[1756924817541,3.0885903,4465.9,4465.0,0.5817]
[1756924817743,3.0885903,4465.9,4465.2,3.23]
[1756924819862,2.6387903,4465.9,4465.2,3.23]
[1756924820491,3.0885903,4465.9,4465.2,3.23]
[1756924820957,3.68868319,4465.9,4465.2,3.23]
[1756924821156,3.0885903,4465.9,4465.2,3.23]
[1756924821809,0.112,4465.9,4465.3,0.4622]
[1756924822099,2.23913784,4466.1,4465.8,0.7975]
[1756924823003,2.23915397,4466.0,4465.8,0.3278]
[1756924823373,2.35104344,4466.2,4465.8,0.3278]
[1756924823883,2.2391903,4465.9,4465.8,0.3278]
[1756924824064,2.2391903,4465.9,4465.8,0.025]
[1756924824961,2.23914946,4466.0,4465.8,0.3278]
[1756924825162,2.23912965,4466.1,4465.8,0.3278]
[1756924825576,2.23915498,4466.0,4465.8,0.3278]
[1756924825777,0.112,4466.2,4465.8,0.3278]
[1756924826080,0.112,4466.2,4465.8,0.7975]
[1756924826081,2.35104474,4466.2,4465.8,0.7975]
[1756924826265,0.112,4466.2,4465.8,0.7975]
[1756924826468,0.112,4466.2,4465.8,1.2597]
[1756924826792,2.23913337,4466.1,4465.8,0.3278]
[1756924827468,2.2391757,4466.0,4465.8,0.025]
[1756924827871,2.2391757,4466.0,4465.8,0.026]
[1756924828084,0.2876,4465.9,4465.8,0.026]
[1756924828400,0.112,4466.2,4465.9,0.3028]
[1756924828401,2.23909824,4466.1,4465.9,0.3028]
[1756924829371,2.23914017,4466.0,4465.9,0.3028]
[1756924830193,2.23914017,4466.0,4465.8,0.026]
[1756924830400,2.35104281,4466.2,4465.9,0.3163]
[1756924831106,0.112,4466.2,4465.8,0.026]
[1756924831403,2.23914266,4466.0,4465.8,0.026]
[1756924831706,2.23915426,4466.0,4465.8,0.026]
[1756924832504,2.23915426,4466.0,4465.9,0.3163]
[1756924832701,2.23910267,4466.1,4465.9,0.3163]
[1756924832876,2.23910267,4466.1,4465.8,0.026]
[1756924833072,2.23910406,4466.1,4465.8,0.026]
[1756924834212,2.23916004,4466.0,4465.8,0.026]
[1756924834877,0.3011,4465.9,4465.8,0.026]
[1756924835176,2.5402903,4465.9,4465.8,0.026]
[1756924835903,0.3011,4465.9,4465.8,0.026]
[1756924836107,2.23914829,4466.0,4465.8,0.3423]
[1756924837113,2.35104433,4466.2,4465.8,0.3423]
[1756924837301,2.2391822,4466.0,4465.8,0.3423]
[1756924837502,2.23909003,4466.1,4465.8,0.3423]
[1756924837720,0.112,4466.2,4465.8,0.3423]
[1756924837721,2.23914017,4466.0,4465.8,0.3423]
[1756924838407,2.35104617,4466.2,4465.8,0.3423]
[1756924838808,2.35104899,4466.2,4465.8,0.3423]
[1756924839132,2.23915165,4466.0,4465.8,0.3423]
[1756924839915,2.2391446,4466.0,4465.8,0.3423]
[1756924841119,0.112,4466.2,4465.9,10.67406608]
[1756924841285,0.112,4466.2,4466.1,2.55539003]
[1756924841810,0.002,4467.0,4466.1,0.7705]
[1756924842111,2.2386922,4466.9,4466.2,2.23903872]
[1756924842410,0.002,4467.0,4466.9,2.23868902]
[1756924842613,0.002,4467.0,4466.9,6.86096269]
[1756924842794,0.002,4467.0,4466.9,9.68621784]
[1756924846451,0.3031,4467.0,4466.8,1.722]
[1756924846747,0.4721,4466.9,4466.5,3.817]
[1756924847029,0.3011,4466.6,4466.5,3.817]
[1756924847729,0.002,4467.0,4466.5,3.817]
[1756924847927,2.24065013,4467.0,4466.5,3.817]
[1756924848130,0.4721,4466.9,4466.5,3.817]
[1756924848327,0.3011,4466.6,4466.5,3.817]
[1756924848631,0.4963,4466.9,4466.5,3.817]
[1756924848829,0.4721,4466.9,4466.5,3.817]
[1756924850232,0.3011,4466.6,4466.5,3.817]
[1756924851024,0.4721,4466.8,4466.5,3.817]
[1756924851231,2.24064288,4467.0,4466.5,3.817]
[1756924851410,0.3011,4466.6,4466.5,3.817]
[1756924851805,0.3011,4466.6,4466.5,3.929]
[1756924852036,0.3011,4466.6,4466.5,3.817]
[1756924852330,0.7732,4466.6,4466.5,3.817]
[1756924852534,0.002,4467.0,4466.5,4.1333]
[1756924852735,0.002,4467.0,4466.6,0.4542]
[1756924853033,0.002,4467.0,4466.7,2.23878926]
[1756924853335,0.002,4467.0,4466.9,2.66698902]
[1756924853502,0.002,4467.0,4466.9,0.112]
[1756924853700,0.3031,4467.0,4466.9,0.112]
[1756924853928,0.3031,4467.0,4466.4,0.4542]
[1756924854333,0.3031,4467.0,4466.4,2.69311792]
[1756924855222,0.3031,4467.0,4466.5,2.23888916]
[1756924855425,0.002,4467.0,4466.9,0.3163]
[1756924856507,0.002,4467.0,4466.9,1.2051]
[1756924857243,0.002,4467.0,4466.9,0.7705]
[1756924858042,0.002,4467.0,4466.9,13.28475499]
[1756924858244,0.002,4467.0,4466.9,10.44430691]
[1756924858414,0.002,4467.0,4466.9,12.37703181]
[1756924860553,0.002,4467.0,4466.9,15.37703181]
[1756924861551,0.002,4467.0,4466.9,15.60133181]
[1756924861850,0.002,4467.5,4467.4,6.03043846]
[1756924862148,0.002,4467.5,4467.4,17.77195635]
[1756924862334,0.002,4467.5,4467.4,20.99730301]
[1756924863154,0.002,4467.9,4467.8,2.23823805]
[1756924863338,0.002,4467.9,4467.8,16.06101834]
[1756924863532,0.002,4467.9,4467.8,17.27405594]
[1756924863940,0.002,4467.9,4467.8,17.38605594]
[1756924864113,0.002,4467.9,4467.8,9.57844249]
[1756924864315,0.002,4467.9,4467.8,6.33793805]
[1756924864826,0.002,4467.9,4467.8,6.84023805]
[1756924865540,0.002,4467.9,4467.8,6.84523805]
[1756924865742,0.002,4467.9,4467.8,7.13493805]
[1756924866352,0.002,4467.9,4467.8,6.84523805]
[1756924867217,0.002,4467.9,4467.8,3.86339288]
[1756924867422,0.2915,4467.9,4467.8,6.76903805]
[1756924867832,0.7352,4467.9,4467.8,6.76903805]
[1756924868724,0.2915,4467.9,4467.8,6.76903805]
[1756924869342,0.002,4467.9,4467.8,6.76903805]
[1756924869619,0.2915,4467.9,4467.8,4.606]
[1756924869833,0.7352,4467.9,4467.8,4.606]
[1756924870033,0.7352,4467.9,4467.4,1.721]
[1756924870326,0.9293,4467.8,4467.5,3.81]
[1756924870526,0.2895,4467.6,4467.5,3.81]
[1756924870926,1.2188,4467.6,4467.5,3.81]
[1756924873347,0.7332,4467.6,4467.5,3.81]
[1756924874261,0.7332,4467.6,4467.5,3.922]
[1756924874759,0.2895,4467.6,4467.5,0.112]
[1756924874959,1.2188,4467.6,4467.5,3.807]
[1756924877167,3.8142432,4467.6,4467.5,3.807]
[1756924881186,1.57590495,4467.6,4466.8,0.025]
[1756924881360,2.2384767,4467.4,4467.0,0.112]
[1756924881790,0.2895,4467.1,4467.0,0.112]
[1756924881986,2.35037157,4467.6,4467.0,0.112]
[1756924882174,2.35037157,4467.6,4467.0,0.4017]
[1756924882356,2.23840731,4467.5,4467.0,0.4017]
[1756924882554,2.23840731,4467.5,4467.0,0.112]
[1756924882555,0.2895,4467.1,4467.0,0.112]
[1756924883568,0.7332,4467.1,4467.0,0.112]
[1756924884586,0.7332,4467.1,4467.0,0.113]
[1756924885179,0.2895,4467.1,4467.0,0.113]
[1756924885703,0.4437,4467.4,4467.0,0.113]
[1756924886357,0.2895,4467.1,4467.0,0.113]
[1756924888792,0.2895,4467.1,4467.0,2.94217441]
[1756924889200,2.35035299,4467.6,4467.0,3.23187441]
[1756924889488,2.23839837,4467.5,4467.0,3.23187441]
[1756924889693,2.23839837,4467.5,4467.1,2.82917441]
[1756924889894,2.70099837,4467.5,4467.2,3.798]
[1756924890275,0.112,4467.6,4467.2,3.798]
[1756924890591,0.002,4467.8,4467.7,3.03028815]
[1756924890758,0.002,4467.8,4467.7,8.5605518]
[1756924890961,0.002,4467.8,4467.7,9.81958815]
[1756924891487,0.002,4467.8,4467.7,7.5813]
[1756924891657,0.002,4467.8,4467.7,7.1184]
[1756924891860,0.002,4467.8,4467.7,9.85905116]
[1756924893475,0.002,4467.8,4467.7,10.81275116]
[1756924901610,0.002,4467.8,4467.7,10.34985116]
[1756924901916,0.002,4467.8,4467.7,10.81275116]
[1756924907215,0.002,4467.8,4467.7,13.81275116]
[1756924907614,0.002,4467.8,4467.7,13.90243454]
[1756924911815,0.002,4467.8,4467.7,16.73160895]
[1756924912523,0.002,4467.8,4467.7,23.73160895]
[1756924914023,0.002,4467.9,4467.8,8.85741246]
[1756924914326,0.002,4467.9,4467.8,18.51013987]
[1756924914629,0.002,4467.9,4467.8,18.82673987]
[1756924914825,1e-08,4468.1,4468.0,3.25443786]
[1756924915026,1e-08,4468.1,4468.0,10.04869775]
[1756924915226,1e-08,4468.1,4468.0,10.46603786]
[1756924915530,1e-08,4468.1,4468.0,18.78397072]
[1756924917533,1e-08,4468.1,4468.0,18.87364285]
[1756924917733,1e-08,4468.1,4468.0,28.70081726]
[1756924919601,1e-08,4468.1,4468.0,28.01361726]
[1756924920105,1e-08,4468.1,4468.0,28.46121726]
[1756924920305,1e-08,4468.1,4468.0,28.01361726]
[1756924921356,1e-08,4468.1,4468.0,28.46121726]
[1756924922844,1e-08,4468.1,4468.0,33.62842791]
[1756924923030,0.4465,4469.4,4469.3,0.792]
[1756924923217,0.4465,4469.4,4469.3,8.53148685]
[1756924923410,0.7425,4469.4,4469.3,8.64348685]
[1756924923615,0.7425,4469.4,4469.3,13.8106975]
[1756924924306,0.7425,4469.4,4469.3,7.65166125]
[1756924924563,1.2019,4469.4,4469.3,11.43366125]
[1756924924705,1.2019,4469.4,4469.3,12.42682426]
[1756924926853,0.7425,4469.4,4469.3,12.42682426]
[1756924927230,0.298,4469.4,4469.3,12.42682426]
[1756924928341,0.7425,4469.4,4469.3,12.42682426]
[1756924928938,0.002,4469.4,4469.3,12.72762426]
[1756924929319,0.298,4469.4,4469.3,12.42682426]
[1756924929515,2.34878897,4470.7,4469.8,1.5612744]
[1756924929727,2.23694225,4470.4,4469.9,5.3432744]
[1756924929940,0.296,4470.0,4469.9,5.3432744]
[1756924930350,0.296,4470.0,4469.9,5.4552744]
[1756924931853,0.8461,4470.0,4469.9,5.4552744]
[1756924932931,0.296,4470.0,4469.9,6.2472744]
[1756924934859,5.56662143,4471.1,4469.9,5.4552744]
[1756924935152,0.099,4470.0,4469.9,5.4552744]
[1756924935355,0.8442,4470.0,4469.9,5.4552744]
[1756924937656,1.32522139,4470.0,4469.9,5.4552744]
[1756924938154,3.22645785,4470.0,4469.9,1.6732744]
[1756924938367,3.88500364,4470.0,4469.9,5.3432744]
[1756924940341,3.88700364,4470.0,4469.9,5.3432744]
[1756924942465,3.14180364,4470.0,4469.9,5.3432744]
[1756924942673,0.90466718,4470.0,4469.9,5.3432744]
[1756924942858,0.58202139,4470.0,4469.9,5.3432744]
[1756924943059,0.101,4470.0,4469.9,9.16326091]
[1756924943246,0.002,4470.0,4469.9,11.04958651]
[1756924943434,0.002,4470.0,4469.9,11.16158651]
[1756924943838,0.002,4470.0,4469.9,11.25123251]
[1756924944074,0.002,4470.0,4469.9,13.11680398]
[1756924944370,0.002,4470.0,4469.9,14.50201463]
[1756924944572,0.101,4470.0,4469.9,3.893]
[1756924945682,0.002,4470.0,4469.9,3.893]
[1756924946048,0.101,4470.0,4469.9,3.893]
[1756924949066,2.81918499,4470.0,4469.9,3.781]
[1756924949383,3.84630349,4470.0,4469.9,3.781]
[1756924950867,3.51040349,4470.0,4469.9,3.781]
[1756924951388,3.10110349,4470.0,4469.9,3.781]
[1756924951677,0.86396703,4470.0,4469.6,0.112]
[1756924951882,0.48104853,4469.9,4469.7,3.781]
[1756924952084,0.1014,4469.8,4469.7,3.781]
[1756924952256,0.58243775,4469.8,4469.7,3.781]
[1756924953382,0.1014,4469.8,4469.7,3.781]
[1756924953890,0.58245945,4469.8,4469.7,3.781]
[1756924954389,0.1014,4469.8,4469.7,3.781]
[1756924954678,0.58250418,4469.8,4469.7,3.781]
[1756924954884,0.48112166,4469.8,4469.7,3.781]
[1756924955252,2.23914691,4470.0,4469.7,3.781]
[1756924955555,0.48111569,4469.9,4469.7,3.781]
[1756924955762,2.23914691,4470.0,4469.7,3.781]
[1756924955973,0.48113761,4469.9,4469.7,3.781]